[Event "Asian Amateur Rapid 2024"]
[Site "Al Ain"]
[Date "2024.12.15"]
[Round "2.30"]
[White "Sharma Pankaj"]
[Black "Muhammad Saleem, Hamad"]
[Result "1-0"]
[ECO "D00"]
[WhiteElo "1861"]
[BlackElo "1577"]
[Annotator "NA RC"]
[PlyCount "79"]
[EventDate "2024.12.15"]
[EventType "swiss"]
[EventCountry "UAE"]
[SourceTitle "playchess.com"]
[Source "ChessBase"]
[SourceQuality "1"]
[TimeControl "900+10"]

1. d4 {[%emt 0:00:02]} Nf6 {[%emt 0:00:02]} 2. Nc3 {[%emt 0:00:01]} d5 {[%emt 0:00:05]} 3. Bf4 {[%emt 0:00:02]} e6 {[%emt 0:00:07]} 4. e3 {[%emt 0:00:01]} Bb4 {[%emt 0:00:03]} 5. Nge2 {[%emt 0:00:01]} O-O {[%emt 0:00:07]} 6. a3 {[%emt 0:00:02]} Bd6 {[%emt 0:00:03]} 7. Rg1 {[%emt 0:00:01]} Nbd7 {[%emt 0:00:21]} 8. g4 {[%emt 0:00:06]} Ne4 {[%emt 0:01:16]} 9. Nxe4 {[%emt 0:00:26]} dxe4 {[%emt 0:00:03]} 10. g5 {[%emt 0:00:51]} e5 {[%emt 0:00:06]} 11. dxe5 {[%emt 0:00:05]} Nxe5 {[%emt 0:00:03]} 12. Bg2 {[%emt 0:02:54]} Bg4 {[%emt 0:00:33]} 13. Bxe4 {[%emt 0:01:04]} Nf3+ {[%emt 0:00:26]} 14. Bxf3 {[%emt 0:00:01]} Bxf3 {[%emt 0:00:02]} 15. Bxd6 {[%emt 0:00:02]} cxd6 {[%emt 0:00:16]} 16. Rg3 {[%emt 0:00:45]} Bh5 {[%emt 0:00:18]} 17. Qd2 {[%emt 0:00:04]} Bxe2 {[%emt 0:00:15]} 18. Qxe2 {[%emt 0:00:01]} d5 {[%emt 0:01:04]} 19. h4 {[%emt 0:00:52]} f6 {[%emt 0:00:44]} 20. O-O-O {[%emt 0:00:08]} fxg5 {[%emt 0:00:09]} 21. Rxg5 {[%emt 0:00:00]} Rc8 {[%emt 0:00:25]} 22. Rdg1 {[%emt 0:00:03]} Rf7 {[%emt 0:00:12]} 23. Qd3 {[%emt 0:00:15]} Qc7 {[%emt 0:01:36]} 24. Rxd5 {[%emt 0:00:36]} Rxf2 {[%emt 0:00:59]} 25. c3 {[%emt 0:00:05]} Rcf8 {[%emt 0:00:27]} 26. Rdg5 {[%emt 0:02:09]} R2f7 {[%emt 0:01:07]} 27. h5 {[%emt 0:00:24]} h6 {[%emt 0:01:05]} 28. Rg6 {[%emt 0:00:13]} Qe5 {[%emt 0:00:13]} 29. Kb1 {[%emt 0:03:48]} Qxh5 {[%emt 0:01:41]} 30. Qc4 {[%emt 0:00:06]} Qf5+ {[%emt 0:00:06]} 31. Ka2 {[%emt 0:00:03]} Kh8 {[%emt 0:00:23]} 32. Qd4 {[%emt 0:00:04]} Qd7 {[%emt 0:00:18]} 33. Rxh6+ {[%emt 0:00:02]} Kg8 {[%emt 0:00:05]} 34. Rd6 {[%emt 0:00:15]} Qf5 {[%emt 0:00:19]} 35. e4 {[%emt 0:00:39]} Qf4 {[%emt 0:00:10]} 36. Rdg6 {[%emt 0:00:05]} Qc7 {[%emt 0:00:49]} 37. Qd5 {[%emt 0:00:02]} Qh2 {[%emt 0:00:56]} 38. Rxg7+ {[%emt 0:00:05]} Kh8 {[%emt 0:00:01]} 39. Rxf7 {[%emt 0:00:38]} Rxf7 {[%emt 0:00:07]} 40. Qd4+ {[%emt 0:00:00]} 1-0

[Event "Asian Amateur Rapid 2024"]
[Site "Al Ain"]
[Date "2024.12.15"]
[Round "2.31"]
[White "Abdulla Ateeq Alremaeithi"]
[Black "Atharv Bansal"]
[Result "0-1"]
[ECO "B44"]
[WhiteElo "1639"]
[BlackElo "1896"]
[Annotator "NA RC"]
[PlyCount "54"]
[EventDate "2024.12.15"]
[EventType "swiss"]
[EventCountry "UAE"]
[SourceTitle "playchess.com"]
[Source "ChessBase"]
[SourceQuality "1"]
[TimeControl "900+10"]

1. e4 {[%emt 0:00:01]} c5 {[%emt 0:00:01]} 2. Nf3 {[%emt 0:00:06]} e6 {[%emt 0:00:01]} 3. c4 {[%emt 0:00:03]} Nc6 {[%emt 0:00:03]} 4. d4 {[%emt 0:00:02]} cxd4 {[%emt 0:00:02]} 5. Nxd4 {[%emt 0:00:01]} Nf6 {[%emt 0:00:02]} 6. f3 {[%emt 0:00:06]} a6 {[%emt 0:00:03]} 7. a3 {[%emt 0:00:03]} Qc7 {[%emt 0:00:26]} 8. Nc3 {[%emt 0:00:03]} Be7 {[%emt 0:00:18]} 9. Be3 {[%emt 0:00:02]} O-O {[%emt 0:00:05]} 10. Be2 {[%emt 0:00:02]} b6 {[%emt 0:00:29]} 11. O-O {[%emt 0:00:03]} Bb7 {[%emt 0:00:01]} 12. Rc1 {[%emt 0:00:02]} Rfd8 {[%emt 0:00:43]} 13. f4 {[%emt 0:00:49]} Nxd4 {[%emt 0:01:18]} 14. Bxd4 {[%emt 0:00:16]} Nxe4 {[%emt 0:00:06]} 15. Nxe4 {[%emt 0:00:17]} Bxe4 {[%emt 0:00:03]} 16. Bxg7 {[%emt 0:01:16]} Kxg7 {[%emt 0:02:39]} 17. Qd4+ {[%emt 0:00:03]} Bf6 {[%emt 0:00:02]} 18. Qxe4 {[%emt 0:00:03]} Bxb2 {[%emt 0:00:03]} 19. Rc2 {[%emt 0:00:21]} f5 {[%emt 0:00:23]} 20. Qd3 {[%emt 0:00:40]} Qc5+ {[%emt 0:01:06]} 21. Kh1 {[%emt 0:00:08]} Qxa3 {[%emt 0:00:44]} 22. Qd1 {[%emt 0:02:16]} Bf6 {[%emt 0:00:37]} 23. Rf3 {[%emt 0:00:03]} Qa1 {[%emt 0:00:01]} 24. Rc1 {[%emt 0:00:31]} Qd4 {[%emt 0:02:07]} 25. Rd3 {[%emt 0:00:10]} Qxf4 {[%emt 0:00:02]} 26. Rxd7+ {[%emt 0:00:03]} Kg6 {[%emt 0:00:53]} 27. Bh5+ {[%emt 0:11:30]} Kh6 {[%emt 0:00:02]} 0-1

[Event "Asian Amateur Rapid 2024"]
[Site "Al Ain"]
[Date "2024.12.15"]
[Round "2.32"]
[White "Amirgali, Nurali"]
[Black "Al Abdali, Zeyad Saleh"]
[Result "0-1"]
[ECO "B23"]
[WhiteElo "1572"]
[BlackElo "1744"]
[Annotator "NA RC"]
[PlyCount "35"]
[EventDate "2024.12.15"]
[EventType "swiss"]
[EventCountry "UAE"]
[SourceTitle "playchess.com"]
[Source "ChessBase"]
[SourceQuality "1"]
[TimeControl "900+10"]

1. e4 {[%emt 0:00:01]} c5 {[%emt 0:00:01]} 2. Nc3 {[%emt 0:00:02]} e6 {[%emt 0:00:16]} 3. f4 {[%emt 0:00:06]} Nc6 {[%emt 0:00:10]} 4. Bb5 {[%emt 0:00:02]} Nd4 {[%emt 0:00:09]} 5. Nf3 {[%emt 0:00:19]} Nxb5 {[%emt 0:00:19]} 6. Nxb5 {[%emt 0:00:03]} a6 {[%emt 0:00:07]} 7. Nc3 {[%emt 0:00:02]} d5 {[%emt 0:00:12]} 8. d3 {[%emt 0:00:08]} Be7 {[%emt 0:00:14]} 9. O-O {[%emt 0:00:03]} Nf6 {[%emt 0:00:48]} 10. Qe1 {[%emt 0:00:32]} d4 {[%emt 0:00:47]} 11. Ne2 {[%emt 0:00:02]} O-O {[%emt 0:00:57]} 12. Qg3 {[%emt 0:02:05]} Kh8 {[%emt 0:01:16]} 13. Ne5 {[%emt 0:01:59]} Qc7 {[%emt 0:01:20]} 14. Bd2 {[%emt 0:05:48]} b5 {[%emt 0:03:37]} 15. a3 {[%emt 0:03:06]} Bb7 {[%emt 0:00:58]} 16. Qh3 {[%emt 0:01:30]} Nd7 {[%emt 0:03:02]} 17. Rae1 {[%emt 0:01:29]} Rad8 {[%emt 0:01:59]} 18. Ng4 {[%emt 0:00:53]} 0-1

[Event "Asian Amateur Rapid 2024"]
[Site "Al Ain"]
[Date "2024.12.15"]
[Round "2.33"]
[White "Adel, Tahseen Khalil"]
[Black "Sharfa, Farukh"]
[Result "1-0"]
[ECO "D37"]
[WhiteElo "1833"]
[BlackElo "1536"]
[Annotator "NA RC"]
[PlyCount "93"]
[EventDate "2024.12.15"]
[EventType "swiss"]
[EventCountry "UAE"]
[SourceTitle "playchess.com"]
[Source "ChessBase"]
[SourceQuality "1"]
[TimeControl "900+10"]

1. d4 {[%emt 0:00:01]} d5 {[%emt 0:00:05]} 2. c4 {[%emt 0:00:01]} e6 {[%emt 0:00:05]} 3. Nf3 {[%emt 0:00:02]} Nf6 {[%emt 0:00:02]} 4. Nc3 {[%emt 0:00:02]} Be7 {[%emt 0:00:05]} 5. Bf4 {[%emt 0:00:04]} a6 {[%emt 0:00:18]} 6. e3 {[%emt 0:00:13]} O-O {[%emt 0:00:13]} 7. Rc1 {[%emt 0:00:14]} Nc6 {[%emt 0:00:41]} 8. a3 {[%emt 0:00:25]} h6 {[%emt 0:00:42]} 9. Qc2 {[%emt 0:00:16]} Bd6 {[%emt 0:01:16]} 10. Bg3 {[%emt 0:00:18]} Na7 {[%emt 0:00:35]} 11. Bd3 {[%emt 0:00:10]} c6 {[%emt 0:00:28]} 12. O-O {[%emt 0:00:14]} Qe7 {[%emt 0:00:37]} 13. Rfe1 {[%emt 0:00:15]} Bxg3 {[%emt 0:01:33]} 14. hxg3 {[%emt 0:00:02]} Qd8 {[%emt 0:00:20]} 15. e4 {[%emt 0:00:41]} dxe4 {[%emt 0:00:45]} 16. Nxe4 {[%emt 0:00:03]} Nxe4 {[%emt 0:00:20]} 17. Bxe4 {[%emt 0:00:04]} Bd7 {[%emt 0:00:54]} 18. Qd2 {[%emt 0:01:07]} Nc8 {[%emt 0:00:21]} 19. g4 {[%emt 0:00:42]} f5 {[%emt 0:01:05]} 20. Bb1 {[%emt 0:00:25]} Nd6 {[%emt 0:01:15]} 21. g5 {[%emt 0:01:17]} h5 {[%emt 0:00:26]} 22. c5 {[%emt 0:00:19]} Nf7 {[%emt 0:00:27]} 23. g6 {[%emt 0:00:02]} Nh6 {[%emt 0:00:11]} 24. Ne5 {[%emt 0:00:12]} Rf6 {[%emt 0:00:32]} 25. Re3 {[%emt 0:01:33]} Be8 {[%emt 0:00:36]} 26. Rce1 {[%emt 0:01:15]} Qd5 {[%emt 0:00:32]} 27. b4 {[%emt 0:02:06]} Bxg6 {[%emt 0:00:18]} 28. Ba2 {[%emt 0:00:08]} Qd8 {[%emt 0:00:12]} 29. Nxg6 {[%emt 0:00:12]} Rxg6 {[%emt 0:00:01]} 30. Rxe6 {[%emt 0:00:03]} Rxe6 {[%emt 0:00:24]} 31. Rxe6 {[%emt 0:00:31]} Kh7 {[%emt 0:00:36]} 32. Qf4 {[%emt 0:01:48]} Qd7 {[%emt 0:01:44]} 33. Qe5 {[%emt 0:00:42]} Rg8 {[%emt 0:01:33]} 34. Re7 {[%emt 0:00:09]} Qd8 {[%emt 0:00:03]} 35. Bxg8+ {[%emt 0:00:44]} Qxg8 {[%emt 0:00:00]} 36. Qe6 {[%emt 0:00:32]} Qf8 {[%emt 0:00:16]} 37. Re8 {[%emt 0:00:15]} Qf7 {[%emt 0:00:18]} 38. Qxf7 {[%emt 0:00:06]} Nxf7 {[%emt 0:00:02]} 39. Re7 {[%emt 0:00:02]} Nd8 {[%emt 0:00:08]} 40. Rd7 {[%emt 0:00:12]} Ne6 {[%emt 0:00:00]} 41. Rxb7 {[%emt 0:00:09]} Nxd4 {[%emt 0:00:02]} 42. Rb6 {[%emt 0:00:02]} Kg8 {[%emt 0:00:24]} 43. Rxa6 {[%emt 0:00:06]} Kf8 {[%emt 0:00:02]} 44. Ra7 {[%emt 0:00:55]} g5 {[%emt 0:00:13]} 45. a4 {[%emt 0:00:13]} h4 {[%emt 0:00:08]} 46. Rd7 {[%emt 0:00:15]} Ke8 {[%emt 0:00:04]} 47. Rxd4 {[%emt 0:00:03]} 1-0

[Event "Asian Amateur Rapid 2024"]
[Site "Al Ain"]
[Date "2024.12.15"]
[Round "2.34"]
[White "Mosallam, Mohammad"]
[Black "Amirgali, Zhanali"]
[Result "1-0"]
[ECO "C26"]
[WhiteElo "1753"]
[BlackElo "1497"]
[Annotator "NA RC"]
[PlyCount "93"]
[EventDate "2024.12.15"]
[EventType "swiss"]
[EventCountry "UAE"]
[SourceTitle "playchess.com"]
[Source "ChessBase"]
[SourceQuality "1"]
[TimeControl "900+10"]

1. e4 {[%emt 0:00:02]} e5 {[%emt 0:00:02]} 2. Nc3 {[%emt 0:00:01]} Nf6 {[%emt 0:00:02]} 3. g3 {[%emt 0:00:01]} Nc6 {[%emt 0:00:04]} 4. Bg2 {[%emt 0:00:01]} Bc5 {[%emt 0:00:03]} 5. Nge2 {[%emt 0:00:02]} d6 {[%emt 0:00:02]} 6. Na4 {[%emt 0:00:02]} Bb6 {[%emt 0:00:02]} 7. Nxb6 {[%emt 0:00:01]} axb6 {[%emt 0:00:03]} 8. d3 {[%emt 0:00:01]} O-O {[%emt 0:00:04]} 9. O-O {[%emt 0:00:02]} h6 {[%emt 0:00:02]} 10. f4 {[%emt 0:00:05]} Bg4 {[%emt 0:00:07]} 11. h3 {[%emt 0:00:03]} Bxe2 {[%emt 0:00:03]} 12. Qxe2 {[%emt 0:00:00]} Nd4 {[%emt 0:00:02]} 13. Qd1 {[%emt 0:00:02]} Qe7 {[%emt 0:00:11]} 14. c3 {[%emt 0:00:02]} Nc6 {[%emt 0:00:05]} 15. f5 {[%emt 0:00:26]} Rfd8 {[%emt 0:00:26]} 16. Be3 {[%emt 0:05:48]} d5 {[%emt 0:00:26]} 17. Qc2 {[%emt 0:00:10]} d4 {[%emt 0:00:32]} 18. Bf2 {[%emt 0:00:32]} Qc5 {[%emt 0:00:24]} 19. Rfc1 {[%emt 0:00:29]} Qe7 {[%emt 0:01:04]} 20. cxd4 {[%emt 0:01:30]} exd4 {[%emt 0:00:04]} 21. Qe2 {[%emt 0:01:28]} Qe5 {[%emt 0:03:27]} 22. Qf3 {[%emt 0:00:47]} Qb5 {[%emt 0:00:33]} 23. Bf1 {[%emt 0:03:24]} Qxb2 {[%emt 0:00:11]} 24. Rcb1 {[%emt 0:00:21]} Qc3 {[%emt 0:00:49]} 25. Be1 {[%emt 0:00:07]} Qc5 {[%emt 0:00:12]} 26. Rc1 {[%emt 0:00:27]} Qe7 {[%emt 0:00:08]} 27. g4 {[%emt 0:00:46]} Ne5 {[%emt 0:00:32]} 28. Qe2 {[%emt 0:01:19]} g6 {[%emt 0:00:50]} 29. Bg3 {[%emt 0:00:43]} Nc6 {[%emt 0:01:25]} 30. Bg2 {[%emt 0:01:03]} gxf5 {[%emt 0:00:33]} 31. gxf5 {[%emt 0:00:02]} Kh7 {[%emt 0:00:05]} 32. e5 {[%emt 0:00:10]} Rg8 {[%emt 0:00:07]} 33. Kh2 {[%emt 0:00:06]} Nd7 {[%emt 0:00:15]} 34. Bxc6 {[%emt 0:00:12]} bxc6 {[%emt 0:00:03]} 35. Rxc6 {[%emt 0:00:01]} Qg5 {[%emt 0:00:31]} 36. Rg1 {[%emt 0:00:09]} Rae8 {[%emt 0:00:22]} 37. e6 {[%emt 0:00:11]} fxe6 {[%emt 0:00:08]} 38. Rxe6 {[%emt 0:00:16]} Rxe6 {[%emt 0:00:36]} 39. fxe6 {[%emt 0:00:01]} Re8 {[%emt 0:00:09]} 40. Qe4+ {[%emt 0:00:19]} Kh8 {[%emt 0:00:43]} 41. Qxd4+ {[%emt 0:00:01]} Nf6 {[%emt 0:00:12]} 42. Bh4 {[%emt 0:00:12]} Qd2+ {[%emt 0:00:15]} 43. Rg2 {[%emt 0:00:00]} Qxg2+ {[%emt 0:01:12]} 44. Kxg2 {[%emt 0:00:02]} Rg8+ {[%emt 0:00:03]} 45. Kh2 {[%emt 0:00:10]} Rf8 {[%emt 0:00:17]} 46. Bxf6+ {[%emt 0:00:05]} Kh7 {[%emt 0:00:08]} 47. Qe4+ {[%emt 0:00:05]} 1-0

[Event "Asian Amateur Rapid 2024"]
[Site "Al Ain"]
[Date "2024.12.15"]
[Round "2.35"]
[White "Rashed Abubaker, Alhemeiri"]
[Black "Alymjanov, Mekan"]
[Result "1-0"]
[ECO "C47"]
[WhiteElo "1861"]
[BlackElo "1480"]
[Annotator "NA RC"]
[PlyCount "43"]
[EventDate "2024.12.15"]
[EventType "swiss"]
[EventCountry "UAE"]
[SourceTitle "playchess.com"]
[Source "ChessBase"]
[SourceQuality "1"]
[TimeControl "900+10"]

1. e4 {[%emt 0:00:10]} e5 {[%emt 0:00:10]} 2. Nf3 {[%emt 0:00:03]} Nc6 {[%emt 0:00:01]} 3. Nc3 {[%emt 0:00:02]} Nf6 {[%emt 0:00:01]} 4. h3 {[%emt 0:00:01]} Bc5 {[%emt 0:00:04]} 5. Nxe5 {[%emt 0:00:15]} Bxf2+ {[%emt 0:00:10]} 6. Kxf2 {[%emt 0:00:03]} Nxe5 {[%emt 0:00:01]} 7. d4 {[%emt 0:00:08]} Ng6 {[%emt 0:00:06]} 8. Bg5 {[%emt 0:00:04]} h6 {[%emt 0:00:12]} 9. Be3 {[%emt 0:00:27]} O-O {[%emt 0:00:03]} 10. Bd3 {[%emt 0:00:05]} d6 {[%emt 0:00:02]} 11. Rf1 {[%emt 0:00:03]} Re8 {[%emt 0:02:46]} 12. Kg1 {[%emt 0:00:02]} Nxe4 {[%emt 0:00:43]} 13. Bxe4 {[%emt 0:00:07]} d5 {[%emt 0:00:03]} 14. Bxg6 {[%emt 0:00:03]} fxg6 {[%emt 0:00:06]} 15. Bf4 {[%emt 0:00:10]} c6 {[%emt 0:00:08]} 16. Be5 {[%emt 0:00:02]} Qb6 {[%emt 0:01:18]} 17. Qf3 {[%emt 0:00:15]} Bf5 {[%emt 0:00:01]} 18. g4 {[%emt 0:00:11]} Rxe5 {[%emt 0:00:24]} 19. gxf5 {[%emt 0:00:20]} Rf8 {[%emt 0:01:16]} 20. Qd3 {[%emt 0:00:13]} Rexf5 {[%emt 0:04:44]} 21. Rf2 {[%emt 0:15:56]} Rf4 22. Rxf4 {[%emt 0:00:00]} 1-0

[Event "Asian Amateur Rapid 2024"]
[Site "Al Ain"]
[Date "2024.12.15"]
[Round "2.37"]
[White "Al Sabti, Wadhah"]
[Black "Pathak Anshu Kr"]
[Result "1-0"]
[ECO "A45"]
[WhiteElo "1470"]
[BlackElo "1661"]
[Annotator "NA RC"]
[PlyCount "97"]
[EventDate "2024.12.15"]
[EventType "swiss"]
[EventCountry "UAE"]
[SourceTitle "playchess.com"]
[Source "ChessBase"]
[SourceQuality "1"]
[TimeControl "900+10"]

1. d4 {[%emt 0:00:02]} Nf6 {[%emt 0:00:06]} 2. Nc3 {[%emt 0:00:04]} e6 {[%emt 0:00:02]} 3. Bf4 {[%emt 0:00:03]} Bb4 {[%emt 0:00:06]} 4. e3 {[%emt 0:00:16]} Nd5 {[%emt 0:00:15]} 5. Nge2 {[%emt 0:00:44]} Nxf4 {[%emt 0:00:03]} 6. Nxf4 {[%emt 0:00:02]} d5 {[%emt 0:01:03]} 7. Bd3 {[%emt 0:00:05]} Nd7 {[%emt 0:00:09]} 8. O-O {[%emt 0:00:54]} Nf6 {[%emt 0:00:07]} 9. Nce2 {[%emt 0:00:36]} Bd6 {[%emt 0:00:14]} 10. c3 {[%emt 0:00:08]} Bd7 {[%emt 0:01:13]} 11. c4 {[%emt 0:01:08]} c6 {[%emt 0:00:12]} 12. c5 {[%emt 0:00:24]} Bb8 {[%emt 0:00:03]} 13. Ng3 {[%emt 0:01:40]} Qc7 {[%emt 0:00:04]} 14. Nfh5 {[%emt 0:00:18]} Nxh5 {[%emt 0:00:14]} 15. Qxh5 {[%emt 0:00:02]} h6 {[%emt 0:01:09]} 16. f4 {[%emt 0:00:20]} O-O {[%emt 0:00:40]} 17. Rf3 {[%emt 0:01:45]} f5 {[%emt 0:00:07]} 18. Qh4 {[%emt 0:00:25]} Qd8 {[%emt 0:00:19]} 19. Qh3 {[%emt 0:00:18]} Be8 {[%emt 0:00:10]} 20. Raf1 {[%emt 0:01:19]} b6 {[%emt 0:00:05]} 21. Nh5 {[%emt 0:01:01]} bxc5 {[%emt 0:01:40]} 22. dxc5 {[%emt 0:00:36]} Bxh5 {[%emt 0:00:13]} 23. Qxh5 {[%emt 0:00:05]} Qf6 {[%emt 0:00:08]} 24. Rg3 {[%emt 0:00:28]} Bc7 {[%emt 0:00:14]} 25. Rg6 {[%emt 0:00:22]} Qe7 {[%emt 0:02:57]} 26. Qxh6 {[%emt 0:00:40]} Rf6 {[%emt 0:00:03]} 27. Qg5 {[%emt 0:00:53]} Raf8 {[%emt 0:00:42]} 28. b4 {[%emt 0:00:57]} a5 {[%emt 0:01:35]} 29. a3 {[%emt 0:00:03]} axb4 {[%emt 0:00:03]} 30. axb4 {[%emt 0:00:02]} Qd7 {[%emt 0:00:24]} 31. Rf3 {[%emt 0:00:52]} Bd8 {[%emt 0:01:05]} 32. Rg3 {[%emt 0:00:51]} Rxg6 {[%emt 0:00:12]} 33. Qxg6 {[%emt 0:03:17]} Bf6 {[%emt 0:00:36]} 34. Rh3 {[%emt 0:00:00]} Qb7 {[%emt 0:00:42]} 35. g4 {[%emt 0:00:00]} Qxb4 {[%emt 0:00:31]} 36. g5 {[%emt 0:00:00]} Qe1+ {[%emt 0:03:24]} 37. Bf1 {[%emt 0:00:00]} d4 {[%emt 0:00:14]} 38. gxf6 {[%emt 0:00:50]} Rxf6 {[%emt 0:00:06]} 39. Qe8+ {[%emt 0:00:00]} Rf8 {[%emt 0:00:05]} 40. Qxe6+ {[%emt 0:00:00]} Rf7 {[%emt 0:00:03]} 41. Qe8+ {[%emt 0:00:00]} Rf8 {[%emt 0:00:03]} 42. Rh8+ {[%emt 0:00:00]} Kxh8 {[%emt 0:00:04]} 43. Qxf8+ {[%emt 0:00:00]} Kh7 {[%emt 0:00:06]} 44. Qxf5+ {[%emt 0:00:00]} Kh6 {[%emt 0:00:12]} 45. exd4 {[%emt 0:00:00]} Qe3+ {[%emt 0:00:05]} 46. Kg2 {[%emt 0:00:00]} Qxd4 {[%emt 0:00:15]} 47. Bd3 {[%emt 0:00:00]} Qd5+ {[%emt 0:00:22]} 48. Qxd5 {[%emt 0:00:00]} cxd5 {[%emt 0:00:01]} 49. c6 {[%emt 0:00:00]} 1-0

[Event "Asian Amateur Rapid 2024"]
[Site "Al Ain"]
[Date "2024.12.15"]
[Round "2.38"]
[White "Alajati, Abdl Alrahman."]
[Black "Muhammad Saifan Noushad Ibrahi"]
[Result "0-1"]
[ECO "B13"]
[WhiteElo "1555"]
[BlackElo "1534"]
[Annotator "NA RC"]
[PlyCount "64"]
[EventDate "2024.12.15"]
[EventType "swiss"]
[EventCountry "UAE"]
[SourceTitle "playchess.com"]
[Source "ChessBase"]
[SourceQuality "1"]
[TimeControl "900+10"]

1. e4 {[%emt 0:00:02]} c6 {[%emt 0:00:04]} 2. d4 {[%emt 0:00:02]} d5 {[%emt 0:00:01]} 3. exd5 {[%emt 0:00:03]} cxd5 {[%emt 0:00:01]} 4. Bd3 {[%emt 0:00:03]} Nc6 {[%emt 0:00:05]} 5. c3 {[%emt 0:00:02]} Nf6 {[%emt 0:00:01]} 6. h3 {[%emt 0:00:02]} g6 {[%emt 0:00:02]} 7. Nf3 {[%emt 0:00:12]} Bg7 {[%emt 0:00:01]} 8. O-O {[%emt 0:00:05]} O-O {[%emt 0:00:02]} 9. Bf4 {[%emt 0:00:15]} Ne4 {[%emt 0:00:20]} 10. Nbd2 {[%emt 0:00:46]} Bf5 {[%emt 0:00:44]} 11. Qc2 {[%emt 0:01:11]} Rc8 {[%emt 0:01:20]} 12. a3 {[%emt 0:00:34]} Nxd2 {[%emt 0:00:03]} 13. Qxd2 {[%emt 0:00:09]} Qd7 {[%emt 0:00:31]} 14. Ne5 {[%emt 0:01:02]} Nxe5 {[%emt 0:00:06]} 15. Bxe5 {[%emt 0:00:02]} f6 {[%emt 0:00:05]} 16. Bg3 {[%emt 0:01:29]} e5 {[%emt 0:00:06]} 17. Bxf5 {[%emt 0:00:31]} gxf5 {[%emt 0:00:15]} 18. dxe5 {[%emt 0:00:46]} fxe5 {[%emt 0:00:04]} 19. Rad1 {[%emt 0:00:32]} f4 {[%emt 0:00:07]} 20. Bh4 {[%emt 0:00:13]} d4 {[%emt 0:00:04]} 21. Rfe1 {[%emt 0:00:57]} Qf5 {[%emt 0:00:37]} 22. f3 {[%emt 0:00:56]} Rc6 {[%emt 0:00:23]} 23. Qd3 {[%emt 0:01:30]} Qh5 {[%emt 0:00:03]} 24. Bf2 {[%emt 0:01:27]} Rg6 {[%emt 0:00:07]} 25. Kh2 {[%emt 0:01:07]} Qg5 {[%emt 0:00:07]} 26. Rg1 {[%emt 0:00:21]} Rd8 {[%emt 0:01:30]} 27. cxd4 {[%emt 0:00:58]} exd4 {[%emt 0:00:04]} 28. Qc4+ {[%emt 0:01:31]} Kh8 {[%emt 0:00:01]} 29. h4 {[%emt 0:00:59]} Qh5 {[%emt 0:00:36]} 30. Rxd4 {[%emt 0:00:39]} Rg8 {[%emt 0:01:42]} 31. Rxf4 {[%emt 0:01:01]} Be5 {[%emt 0:00:07]} 32. Bd4 {[%emt 0:00:02]} Qxh4# {[%emt 0:00:14]} 0-1

[Event "Asian Amateur Rapid 2024"]
[Site "Al Ain"]
[Date "2024.12.15"]
[Round "2.40"]
[White "Sultan Ahmed AlMheiri"]
[Black "Saud Bader Huwair Alzarooni"]
[Result "0-1"]
[ECO "B45"]
[WhiteElo "1569"]
[BlackElo "1644"]
[Annotator "NA RC"]
[PlyCount "86"]
[EventDate "2024.12.15"]
[EventType "swiss"]
[EventCountry "UAE"]
[SourceTitle "playchess.com"]
[Source "ChessBase"]
[SourceQuality "1"]
[TimeControl "900+10"]

1. e4 {[%emt 0:00:01]} c5 {[%emt 0:00:01]} 2. Nf3 {[%emt 0:00:02]} e6 {[%emt 0:00:01]} 3. d4 {[%emt 0:00:01]} cxd4 {[%emt 0:00:02]} 4. Nxd4 {[%emt 0:00:02]} Nf6 {[%emt 0:00:02]} 5. Nc3 {[%emt 0:00:02]} Nc6 {[%emt 0:00:01]} 6. f3 {[%emt 0:00:28]} Bb4 {[%emt 0:00:04]} 7. Be3 {[%emt 0:00:47]} d5 {[%emt 0:00:13]} 8. Bb5 {[%emt 0:00:54]} Bd7 {[%emt 0:00:10]} 9. Bxc6 {[%emt 0:00:28]} Bxc6 {[%emt 0:00:11]} 10. e5 {[%emt 0:00:18]} Nd7 {[%emt 0:00:08]} 11. f4 {[%emt 0:00:37]} Qa5 {[%emt 0:00:58]} 12. Qd2 {[%emt 0:00:51]} Nc5 {[%emt 0:00:23]} 13. Nb3 {[%emt 0:06:32]} Nxb3 {[%emt 0:02:15]} 14. cxb3 {[%emt 0:00:11]} Bb5 {[%emt 0:02:44]} 15. Kf2 {[%emt 0:05:11]} Rc8 {[%emt 0:00:35]} 16. Bd4 {[%emt 0:00:20]} O-O {[%emt 0:02:16]} 17. a3 {[%emt 0:00:03]} Be7 {[%emt 0:00:21]} 18. b4 {[%emt 0:00:20]} Qa6 {[%emt 0:00:05]} 19. Rhc1 {[%emt 0:00:24]} Bc4 {[%emt 0:01:32]} 20. Kg1 {[%emt 0:00:40]} b6 {[%emt 0:00:30]} 21. Rab1 {[%emt 0:00:10]} Bd3 {[%emt 0:00:03]} 22. Ra1 {[%emt 0:00:02]} Bf5 {[%emt 0:00:21]} 23. b5 {[%emt 0:00:08]} Qb7 {[%emt 0:00:12]} 24. Ne2 {[%emt 0:00:16]} Bc5 {[%emt 0:00:30]} 25. b4 {[%emt 0:00:12]} Be7 {[%emt 0:00:40]} 26. Ng3 {[%emt 0:00:06]} Bg6 {[%emt 0:00:01]} 27. Rxc8 {[%emt 0:00:15]} Rxc8 {[%emt 0:00:01]} 28. Rc1 {[%emt 0:00:00]} Rc4 {[%emt 0:00:33]} 29. Rxc4 {[%emt 0:00:26]} dxc4 {[%emt 0:00:01]} 30. Qc3 {[%emt 0:00:02]} Qd5 {[%emt 0:00:09]} 31. Nf1 {[%emt 0:00:10]} Qxb5 {[%emt 0:00:05]} 32. Ne3 {[%emt 0:00:10]} Bd3 {[%emt 0:00:11]} 33. Nd1 {[%emt 0:00:02]} a5 {[%emt 0:00:21]} 34. bxa5 {[%emt 0:00:26]} bxa5 {[%emt 0:00:23]} 35. Nb2 {[%emt 0:00:02]} g6 {[%emt 0:01:02]} 36. a4 {[%emt 0:00:18]} Qd7 {[%emt 0:01:12]} 37. Bb6 {[%emt 0:00:12]} Bb4 {[%emt 0:00:03]} 38. Qc1 {[%emt 0:00:05]} c3 {[%emt 0:00:25]} 39. Nd1 {[%emt 0:00:09]} Qc6 {[%emt 0:01:12]} 40. Bd4 {[%emt 0:00:08]} c2 {[%emt 0:00:18]} 41. Be3 {[%emt 0:00:17]} Ba3 {[%emt 0:00:29]} 42. Nb2 {[%emt 0:00:10]} Qc3 {[%emt 0:00:10]} 43. Nxd3 {[%emt 0:00:11]} Bxc1 {[%emt 0:00:05]} 0-1